Cogmind - Beta 13 @@@ ROGUE MODE // 2024.06.28 @ 22:35:52 Player: ZergFTW Result: Destroyed by FQ-QES(R) with Subdweller Machine Gun Performance ------------- Evolutions (0) 0 Regions Visited (2) 400 Robots Destroyed (27) 135 Value Destroyed (620) 620 Prototype IDs (0) 0 Alien Tech Used (0) 0 Bonus (0) 0 TOTAL SCORE: 1155 Bonus ------- None Cogmind --------- Core Integrity 0/250 Matter 270/300 Energy 250/250 System Corruption 0% Temperature Cool (0) Movement Treading (160) Location -10/Subcaves Parts ------- > --- POWER (1) -------- Ion Engine > --- PROPULSION (2) --- Light Treads > --- UTILITY (2) ------ Medium Storage Unit Structural Scanner > --- WEAPON (2) ------- Medium Laser Assault Rifle > --- INVENTORY (10) --- Ion Engine Light Treads Wheel Large Matter Pod (150) Sensor Array Sensor Array Signal Interpreter Particle Gun Hammer Peak State ------------ > --- POWER ------------ Ion Engine > --- PROPULSION ------- Light Treads Light Treads > --- UTILITY ---------- Medium Storage Unit Sensor Array > --- WEAPON ----------- Particle Gun Assault Rifle > --- INVENTORY -------- Ion Engine Light Treads Wheel Medium Matter Pod Sensor Array Signal Interpreter Medium Laser Light Assault Rifle Datajack Hammer [Rating: 9] Favorites ----------- Power Ion Engine Engine Ion Engine Propulsion Light Treads Treads Light Treads Utility Medium Storage Unit Device Sensor Array Storage Medium Storage Unit Weapon Assault Rifle Energy Gun Particle Gun Ballistic Gun Assault Rifle Launcher Grenade Launcher Impact Weapon Hammer Build | -11 -10 -10 ------- Run | Yrd Mat Sub Slots Evolved . | . . . Power . | . . . Propulsion . | . . . Utility . | . . . Weapon . | . . . Parts Attached 27 | 8 14 5 Power 2 | 1 1 . Engine 2 | 1 1 . Core . | . . . Reactor . | . . . Propulsion 4 | 2 2 . Treads 4 | 2 2 . Leg . | . . . Wheel . | . . . Hover . | . . . Flight . | . . . Utility 5 | 1 4 . Device 3 | . 3 . Storage 2 | 1 1 . Processor . | . . . Hackware . | . . . Protection . | . . . Artifact . | . . . Weapon 16 | 4 7 5 Energy Gun 5 | 1 3 1 Energy Cannon . | . . . Ballistic Gun 5 | 3 1 1 Ballistic Cannon . | . . . Launcher 1 | . . 1 Special Weapon . | . . . Impact Weapon 5 | . 3 2 Slashing Weapon . | . . . Piercing Weapon . | . . . Special Melee Weapon . | . . . Unidentified Prototypes . | . . . Parts Lost 2 | . . 2 Power . | . . . Propulsion 1 | . . 1 Utility . | . . . Weapon 1 | . . 1 Highest Loss Streak 1 | . . 1 To Critical Strikes . | . . . Average Slot Usage (%) 95 | . 94 100 Engine 14 | . 14 14 Treads 26 | . 25 28 Device 11 | . 10 14 Storage 14 | . 14 14 Energy Gun 13 | . 13 12 Ballistic Gun 12 | . 13 7 Impact Weapon 2 | . . 7 Naked Turns . | . . . Heaviest Build 21 | 13 21 21 Greatest Support 40 | 40 40 40 Greatest Overweight (x) 2 | 2 1 . Average Overweight (x) . | . . . Largest Inventory Capacity 10 | 8 10 10 Average Capacity 9 | 7 9 10 Most Carried 10 | 6 10 10 Average Carried 8 | 3 8 9 Final Capacity 10 | 8 10 10 Final Carried 10 | 5 10 9 Class Distribution -------------------- 58% | Scavenger-Mutant 41% | Mutant Dominant Class ---------------- Scavenger-Mutant | -10/Materials Scavenger-Mutant | -10/Subcaves Resources | -11 -10 -10 ----------- Run | Yrd Mat Sub Matter Collected 936 | 343 529 64 Remotely . | . . . Salvage Created 958 | 161 681 116 Parts 57 | 8 43 6 Haulers Intercepted 2 | . 2 . Recyclers Shooed . | . . . Parts Field Recycled . | . . . Retrieved Matter . | . . . Parts Self-Destructed 1 | . . 1 Prevented . | . . . Kills | -11 -10 -10 ------- Run | Yrd Mat Sub Combat Hostiles Destroyed 14 | . 9 5 Guns 12 | . 9 3 AOE 2 | . . 2 Classes Destroyed 9 | 3 5 1 Worker 2 | 2 . . Builder 3 | . 3 . Tunneler 1 | 1 . . Hauler 2 | . 2 . Recycler 2 | 1 1 . Operator 1 | . 1 . Watcher 2 | . 2 . Grunt 9 | . 9 . Subdweller 5 | . . 5 Best Kill Streak 4 | 2 4 4 Combat Bots Only 4 | . 4 4 Max Kills in Single Turn 2 | 1 1 2 Gunslinging 1 | . . 1 Exploded 1 | . . 1 Melee . | . . . Uniques/NPCs Destroyed . | . . . Combat | -11 -10 -10 -------- Run | Yrd Mat Sub Hostile Shots Fired 67 | . 36 31 Missed 10 | . 5 5 Damage Taken 1042 | . 365 677 Core 271 | . 59 212 Absorbed by Shields . | . . . Regen/Repaired (Parts) 43 | . 43 . Core Remaining (%) 100 | 100 . . Volleys Fired 88 | 5 64 19 Largest 2 | 2 2 2 Hottest 95 | 60 85 95 Shots Fired 164 | 10 124 30 Gun 161 | 10 124 27 Cannon . | . . . Launcher 3 | . . 3 Special . | . . . Kinetic 79 | 7 64 8 Thermal 82 | 3 60 19 Explosive 3 | . . 3 Electromagnetic . | . . . Robot Hit Streak 22 | 6 22 13 Robot Miss Streak 7 | . 7 2 Penetration Max . | . . . Secondary Targets 1 | . . 1 Max Gunslinging Chain 1 | . . 1 Shots Hit Robots 112 | 6 80 26 Core Hits 47 | 5 30 12 Critical Kills 1 | . 1 . Critical Parts Destroyed . | . . . Critical Strikes 4 | . 3 1 Burn 3 | . 2 1 Destroy 1 | . 1 . Melee Attacks 25 | . 10 15 Impact 25 | . 10 15 Slashing . | . . . Piercing . | . . . Sneak Attacks 2 | . 1 1 Combat Hostiles . | . . . Follow-up Attacks . | . . . Damage Inflicted 1940 | 62 1078 800 Guns 1385 | 62 1018 305 Cannons . | . . . Explosions 495 | . . 495 Melee 60 | . 60 . Ramming . | . . . Kinetic 668 | 28 538 102 Thermal 717 | 34 480 203 Explosive 495 | . . 495 Electromagnetic . | . . . Impact 60 | . 60 . Slashing . | . . . Piercing . | . . . Highest Corruption . | . . . Average Corruption . | . . . Corruption Purged . | . . . Corruption Blocked . | . . . Overload Shots . | . . . Overflow Damage 46 | . 46 . Projectiles . | . . . Explosions . | . . . Melee 46 | . 46 . Knockbacks . | . . . Impact . | . . . Kinetic . | . . . Secondary . | . . . Self-Inflicted Damage 11 | . . 11 Shots 1 | . . 1 Rammed . | . . . Targets Rammed . | . . . Kicked . | . . . Crushed . | . . . Highest Temperature 350 | . 350 6 Average Temperature 84 | . 85 6 Received Heat Transfer 303 | . 204 99 Effects 2 | . 2 . Shutdowns 1 | . 1 . Energy Bleed 1 | . 1 . Siege Activations . | . . . Robots Corrupted . | . . . Combat Hostiles . | . . . Parts Fried 2 | . 2 . Impact Corruptions 1 | . 1 . Robots Melted . | . . . Combat Hostiles . | . . . Parts Melted . | . . . Heat Transferred 2004 | 75 1300 629 Parts Sabotaged . | . . . Parts Stolen . | . . . Parts Stripped . | . . . Power Chain Reactions . | . . . Alert | -11 -10 -10 ------- Run | Yrd Mat Sub Peak Influence 175 | 20 175 . Initial 13 | . 13 . Average 38 | 9 40 . Maximum Alert Level . | . . . Low Security (%) 100 | 100 100 . Level 1 . | . . . Level 2 . | . . . Level 3 . | . . . Level 4 . | . . . Level 5 . | . . . High Security . | . . . Max Security . | . . . Squads Dispatched 4 | . 4 . Investigation 2 | . 2 . Extermination . | . . . Reinforcement 2 | . 2 . Assault . | . . . Garrison . | . . . Intercept . | . . . Searches Triggered . | . . . Construction Impeded . | . . . Haulers Reinforced . | . . . Active Scanning Responses . | . . . Cargo Convoy Interrupts . | . . . Stealth | -11 -10 -10 --------- Run | Yrd Mat Sub Distress Signals 3 | . 3 . Communications Jammed . | . . . Distress Signals . | . . . Times Spotted 24 | . 18 6 Peak Tracking Total 6 | . 6 4 Tactical Retreats 1 | . 1 . Traps | -11 -10 -10 ------- Run | Yrd Mat Sub Traps Triggered 3 | . 2 1 Indirectly . | . . . Trap Hack Attempts . | . . . Triggered . | . . . Disarmed . | . . . Reprogrammed . | . . . Reused . | . . . Traps Extracted . | . . . Installed . | . . . Triggered . | . . . Machines | -11 -10 -10 ---------- Run | Yrd Mat Sub Machines Disabled . | . . . Max in Single Turn . | . . . Machines Repaired . | . . . Machines Dismantled . | . . . Machines Sabotaged . | . . . Overloaded Fab Kills . | . . . Hacking | -11 -10 -10 --------- Run | Yrd Mat Sub Machines Accessed 8 | . 7 1 Terminals 4 | . 4 . Fabricators . | . . . Repair Stations 1 | . 1 . Recycling Units 2 | . 2 . Scanalyzers . | . . . Garrison Access . | . . . Total Hacks 19 | . 16 3 Successful 12 | . 9 3 Failed 7 | . 7 . Catastrophic 3 | . 3 . Database Lockouts . | . . . Manual 5 | . 4 1 Terminals 8 | . 8 . Fabricators . | . . . Repair Stations 5 | . 5 . Recycling Units 3 | . 3 . Scanalyzers . | . . . Garrison Access . | . . . Terminal Hacks 7 | . 4 3 Record 3 | . . 3 Branch Access Points 1 | . 1 . Terminal Index 1 | . 1 . Alert Level 1 | . 1 . Registered Components 1 | . 1 . Fabricator Hacks . | . . . Repair Station Hacks 2 | . 2 . Scan Component 1 | . 1 . Repair 1 | . 1 . Recycling Unit Hacks 3 | . 3 . Report Inventory 2 | . 2 . Retrieve Components 1 | . 1 . Scanalyzer . | . . . Garrison Access Hacks . | . . . Unauthorized Hacks . | . . . Terminals . | . . . Fabricators . | . . . Repair Stations . | . . . Recycling Units . | . . . Scanalyzers . | . . . Garrison Access . | . . . Data Cores Recovered . | . . . Used . | . . . Hacking Detections 5 | . 5 . Full Trace Events . | . . . Feedback Events . | . . . Feedback Blocked . | . . . Robot Schematics Acquired . | . . . Robots Built . | . . . Authchips . | . . . Time . | . . . Total Robot Build Rating . | . . . Part Schematics Acquired . | . . . Parts Built . | . . . Authchips . | . . . Time . | . . . Total Part Build Rating . | . . . Parts Repaired 1 | . 1 . Time 26 | . 26 . Parts Recycled . | . . . Recycled Matter . | . . . Retrieved Matter . | . . . Retrieved Components 10 | . 10 . Parts Scanalyzed . | . . . Part Schematics Acquired . | . . . Parts Damaged . | . . . Bothacking | -11 -10 -10 ------------ Run | Yrd Mat Sub Used RIF Installer . | . . . Robots Hacked . | . . . Non-combat . | . . . Combat . | . . . Robot Hacks Applied . | . . . Relay Couplers Released . | . . . Fabnet Peak Effective % . | . . . Robots Rewired . | . . . Allies Hacked . | . . . Hacks Repelled . | . . . Allies | -11 -10 -10 -------- Run | Yrd Mat Sub Total Allies . | . . . Largest Group . | . . . Highest-Rated Group . | . . . Highest-Rated Ally . | . . . Total Orders . | . . . Ally Attacks . | . . . Total Damage . | . . . Kills . | . . . Allies Corrupted . | . . . Allies Melted . | . . . Intel | -11 -10 -10 ------- Run | Yrd Mat Sub Robot Analysis Total . | . . . Derelict Logs Recovered . | . . . Drone Launches . | . . . Drone Recoveries . | . . . Exploration | -11 -10 -10 ------------- Run | Yrd Mat Sub Turns Passed 3023 | 147 2267 609 Spaces Moved 1570 | 75 1175 320 Core 20 | 20 . . Treads 1550 | 55 1175 320 Legs . | . . . Wheels . | . . . Hover . | . . . Flight . | . . . Fastest Speed 50 | 50 160 160 Average Speed 163 | 136 165 160 Slowest Speed 240 | 160 240 160 Overloaded Moves . | . . . Propulsion Burnouts . | . . . Robots Hopped . | . . . Cave-ins Triggered . | . . . Exploration Rate (%) 42 | 4 100 23 Regions Visited 2 Branch Regions 1 Pre-discovered Areas 1 | . . 1 Known Exits Taken . | . . . Unknown Exits Taken 2 | 1 1 . Scrap Searched . | . . . Spaces Dug 7 | . 6 1 Terrain Destroyed 20 | . 6 14 Melee 7 | . 6 1 Projectile . | . . . AOE 13 | . . 13 Terrain Rammed . | . . . Walls Destroyed . | . . . Machines Disabled . | . . . Actions | -11 -10 -10 --------- Run | Yrd Mat Sub Total 1817 | 108 1350 359 Wait 78 | 13 65 . Move 1568 | 74 1174 320 Hop . | . . . Pick Up 22 | 8 14 . Fast Attach 3 | 3 . . Attach 6 | 3 2 1 Detach . | . . . Swap 18 | 2 12 4 Drop 9 | . 9 . Fire 88 | 5 64 19 Melee 25 | . 10 15 Ram . | . . . Kick . | . . . Crush . | . . . Escape Stasis . | . . . Rewire . | . . . Trap . | . . . Miscellaneous . | . . . Route ------- -11/Scrapyard -10/Materials (discovered 6 exits: [*Mat x3] / *Min x2 / *Sub) -10/Subcaves (discovered 1 exit: [*Mat]) History --------- Turn | Location | Event 4 | -11/Scrapyard | Discovered new exit (range 15) 148 | -11/Scrapyard | Entered Materials 301 | -10/Materials | Build established: Mutant 410 | -10/Materials | Identified exit to Mines 577 | -10/Materials | Discovered new exit (range 10) 762 | -10/Materials | Repaired Lgt. Treads 1048 | -10/Materials | Derelicts attacked the area 1410 | -10/Materials | Discovered new exit (range 8) 1428 | -10/Materials | Build established: Scavenger-Mutant 1748 | -10/Materials | Discovered new exit (range 11) 2218 | -10/Materials | Discovered new exit (range 12) 2415 | -10/Materials | Entered Subcaves 2592 | -10/Subcaves | Discovered new exit (range 14) 2593 | -10/Subcaves | Shifting Twisted Machinery released Flamer 2630 | -10/Subcaves | Shifting Twisted Machinery released Piercing Trap 2639 | -10/Subcaves | Visited Clippyterm 2644 | -10/Subcaves | Learned location of Section 7 (-2) 2800 | -10/Subcaves | Core integrity fell below 50% 3005 | -10/Subcaves | Core integrity fell below 20% 3024 | -10/Subcaves | Destroyed by FQ-QES(R) with Subdweller Machine Gun Last Messages --------------- Please. 02684_ 1D-QB0(u) tweaks Twisted Machinery. 02798_ HT-6RI(R) destroyed. 02801_ MQ-YMD(R) destroyed. 02801_ Grenade Launcher destroyed. 02806_ 7T-SDG(R) affixes Scrap Shield Fragment to Scrap Shield. 02813_ 7T-SDG(R) destroyed. 02813_ Switching to secondary target: 9W-EGK(R). 02813_ 9W-EGK(R) destroyed. 02821_ Acquired 20 matter. 02822_ Acquired 30 matter. 02826_ Subatomizers dissect the Sub. Laser, destroying it. 02827_ Acquired 14 matter. 02831_ The unstable cave ceiling collapses. 02943_ 1D-QB0(u) builds Twisted Machinery. 02946_ Sneak attack on 1D-QB0(u). 03000_ PF-A0R(R) destroyed. 03014_ FQ-QES(R) affixes Scrap Shield Fragment to Scrap Shield. 03022_ FQ-QES(R) suffers critical hit (Burn). 03022_ Lgt. Treads destroyed. Map ----- +----------------------------------------------------+ | ?????????????????????????????????????????????????? | | ?????????????????????????????????????????????????? | | ?????????????????????????????????????????????????? | | ?????????????????????????????????????????????????? | | ?????????????????????????????????????????????????? | | #########????????????????????????????????????????? | | #########????????######??????????????????????????? | | ##"""""##??#############?????????????????????????? | | ##""X""##??########" ####????????????????????????? | | ##" "###### ""#"" ####???????????????????????? | | #### ######## ###"??????????????????????? | | #### ## ####" ### "##"??????????????????????? | | ### #&"#" ### """"###?????????????????????? | | ## """ "" """" ""##?????????????????????? | | " """""""" ""###?????????????????????? | | ### ## #"""""""####?????????????????????? | | " ### ######""""""#####?""#????????????????? | | " ## ## < #######"""#####"""##????????????????? | | " ##" ######"####""## ### ??????????????? | | " " ###?#####""""""""### ??????????????? | | " """" ####??##""""" "" ??!%??????????? | | " ###"" ####?##"""""" ???? &* ???????## | | " #####" ## ######"" " ""# ???? ??????? # | | " ###### |##" #####"" "##?? ????????? # | | ### "##" "## " #### #### ##???????## # | | ### ##" ""##"" " @ ####" ###??####### # | | ## #### #####" R% "" ##??####### # | | ### ""#### ###### ] ####### ^ | | #### " #### #######; ### ##### ## # | | ?#### "#### ######## ### ## ### ## | | ??#### ### ###??##### ###### ### ## | | ###### ## ###????######### ? #### # | | ##### ######??#####?????##### ## ## | | ######????######?##### % ### ## | | ### ###????############ ### # | | #### ###??### ####### ## | | ## #### ######## #" ## ## | | ## ### ###### """## ^ ## | | ?## #### " ## % | | ??### # % | | ?#### ## | | #### ### ###" ""#% # ### | | ### #### #### ## ##################### | | ## ################################ #### | | ## ###################????????????## ### | | ## ####????????????????????????????## | | ### ####?????????????????????????????### | | ### ###???????????????????????????????#### | | ?## ##?????????????????????????????????#### | | ?######???????????????????????????????????### | +----------------------------------------------------+ Best States ------------- Heat Dissipation 25 Energy Generation 10 Energy Capacity 250 Matter Stores 300 Matter Capacity 300 Sight Range 16 Robot Scan Range 14 Terrain Scan Density 10 Evasion (%) 50 Recoil Reduction 2 Item Schematics ----------------- None Robot Schematics ------------------ None Fabricated ------------ Nothing Alien Tech Used ----------------- None Achievements -------------- None Challenges ------------ None Game ------ Seed TitaniumSwarmCanceller Manual? 0 Play Time 00:29:05 Cumulative 44.7 hours Start 2024.06.28 @ 21:57:30 End 2024.06.28 @ 22:35:52 Sessions 1 Manual Loads 0 Difficulty Rogue Special Mode None Game No. 35 Rogue 34 Adventurer 1 Explorer 0 Win Type - Total 0 Types 0/0/0/0/0/0/0/0/0 Lore% 21 Gallery% 26 Achievement% 25 Wizard Run 0 Options --------- Layout 1 ASCII 0 Keyboard 0 Movement Mouse Keybinds 0 Fullscreen 2 Font 24/Proggy Map View 76x35 Zoom Use 0% Tactical HUD 1 Map Filters NONE Filters NONE Steam 1 RUN: 4fbe1c02-8e59-471e-ac82-49e91e9beac5